[Event "1st Chessable Sunway Formentera 2022"]
[Site "Formentera Punta Prima"]
[Date "2022.05.05"]
[Round "7.10"]
[White "Real, Thibault"]
[Black "Chiku-Ratte, Olivier-Kenta"]
[Result "1-0"]
[ECO "E61"]
[WhiteElo "2262"]
[BlackElo "2358"]
[Annotator "TA"]
[PlyCount "75"]
[EventDate "2022.05.05"]
[EventType "swiss"]
[EventCountry "ESP"]
[SourceTitle "playchess.com"]
[Source "ChessBase"]
[SourceQuality "1"]
[TimeControl "40/5400+30:1800+30"]

{[%evp 14,75,32,26,38,38,35,39,42,16,52,-21,-14,-14,-16,-29,-30,-73,0,0,0,0,17,4,95,95,116,106,176,172,190,130,215,206,404,374,422,420,658,642,1221,527,550,372,29990,29989,29989,29990,29990,29991,29991,29991,29991,29992,29993,29991,29991,29991,29991,29992,29994,29995,29997,29998]} 1. d4 {[%emt 0:00:19]} Nf6 {[%emt 0:00:21]} 2. Nf3 {[%emt 0:00:09]} g6 {[%emt 0:00:09]} 3. c4 {[%emt 0:00:06]} Bg7 {[%emt 0:00:03]} 4. e3 {[%emt 0:00:08]} O-O {[%emt 0:00:17]} 5. Be2 {[%emt 0:00:07]} c5 {[%emt 0:01:52]} 6. d5 {[%emt 0:00:05]} d6 {[%emt 0:07:06] 6...d6 scores better than 6...e6.} 7. Nc3 {[%emt 0:00:33]} Bf5 {[%emt 0:00:37]} 8. O-O {[%emt 0:05:52]} Ne4 {[%emt 0:02:28] E61: King's Indian: Early deviations for White, including Smyslov System.} 9. Nxe4 {[%emt 0:03:23]} Bxe4 {[%emt 0:00:04]} 10. Ng5 {[%emt 0:07:34] Prevents e6.} Bf5 {[%emt 0:01:31] [#] White is slightly better.} 11. f4 $146 {[%emt 0:03:49]} ({Predecessor:} 11. e4 Bd7 12. Rb1 Na6 13. a3 Rb8 14. b3 b5 15. cxb5 Bxb5 16. Bxb5 Rxb5 17. Qd3 {1-0 (52) Schaffarth,P (1855)-Milde,L (2029) GER email 2014}) 11... b5 {[%emt 0:06:12]} 12. h4 {[%emt 0:32:48]} (12. e4 $14 Bd7 13. Rb1 (13. cxb5 a6 $11)) 12... bxc4 $11 {[%emt 0:10:11] And now ...c3 would win.} 13. e4 {[%emt 0:08:54]} Bc8 {[%emt 0:23:36]} 14. h5 {[%emt 0:00:07]} Nd7 {[%emt 0:09:48]} 15. Be3 {[%emt 0:09:17] Inhibits Bd4.} Rb8 {[%emt 0:13:19]} (15... h6 $17 16. Nf3 Nf6) 16. hxg6 {[%emt 0:00:58]} hxg6 {[%emt 0:00:02]} 17. Qe1 {[%emt 0:08:46] Black must now prevent Qh4.} Bf6 {[%emt 0:10:49]} (17... Bxb2 $2 18. Qh4 Nf6 19. e5 $18) 18. f5 {[%emt 0:02:30]} Bxg5 {[%emt 0:02:59]} (18... Rxb2 19. Qh4 Bxg5 20. Bxg5 Rxe2 21. Bxe7 $16) (18... Ne5 $1 $11 {keeps the balance.}) 19. Bxg5 $16 {[%emt 0:00:08] Black is on the road to losing.} f6 {[%emt 0:01:19] [#]} 20. Bh6 $40 {[%emt 0:05:18][%mdl 128] White attacks with force. White is more active.} g5 {[%emt 0:00:58]} (20... Ne5 $16) 21. Bxf8 $18 {[%emt 0:02:28]} ({Don't go for} 21. Bxc4 $2 Rf7 22. Qd2 Rh7 23. Bxg5 fxg5 24. Qxg5+ Rg7 $19) 21... Qxf8 {[%emt 0:04:23]} 22. Kf2 {[%emt 0:00:09]} ({Don't do} 22. Bxc4 $6 Rxb2 23. Qc3 Rb6 $16) ({White should try} 22. Qc3 $18) 22... Ne5 {[%emt 0:01:42]} (22... Rxb2 $16 23. Qc3 Rb4) 23. Qc3 {[%emt 0:00:56]} Kf7 $2 {[%emt 0:01:22]} (23... Qg7 24. Rh1 Bd7) 24. Rh1 {[%emt 0:01:25] Strongly threatening Rh7+.} Ke8 {[%emt 0:00:37]} 25. Rh7 {[%emt 0:01:40] Hoping for Rah1.} g4 {[%emt 0:00:25]} (25... Kd7 $142 26. Qa3 (26. Bxc4 Nxc4 27. Qxc4 Rxb2+ 28. Ke3 Rb4 $18) 26... a6) 26. Rah1 {[%emt 0:01:03] Rh8 is the strong threat.} Kd7 {[%emt 0:00:17]} 27. Qa5 {[%emt 0:01:27]} (27. Rh8 $142 Qxh8 28. Rxh8) 27... g3+ {[%emt 0:00:29]} 28. Ke1 {[%emt 0:01:00] White wants to mate with Bd1.} Nf7 $2 {[%emt 0:00:51]} (28... Qd8 $18 29. Qa4+ Kc7 30. Qxa7+ Rb7 31. Qa5+ Kd7 32. Qa4+ Kc7) 29. Bd1 {[%emt 0:00:24] White mates.} Rb6 {[%emt 0:00:19]} 30. Qxa7+ {[%emt 0:00:22]} Rb7 {[%emt 0:00:02]} 31. Qa5 {[%emt 0:00:09]} Rb4 {[%emt 0:01:04]} 32. Ba4+ {[%emt 0:01:37]} Rxa4 {[%emt 0:00:03]} 33. Qxa4+ {[%emt 0:00:04]} Kc7 {[%emt 0:00:04]} 34. Qc6+ {[%emt 0:00:17]} Kb8 {[%emt 0:00:14] [#]} 35. Rxf7 $1 {[%emt 0:00:12]} Qd8 {[%emt 0:01:30]} 36. Qb5+ {[%emt 0:00:10]} Bb7 {[%emt 0:00:19]} 37. Rhh7 {[%emt 0:00:38]} Qg8 {[%emt 0:00:35]} 38. Rxe7 {[%emt 0:00:33] Weighted Error Value: White=0.27 (precise) /Black=0.49} 1-0

[Event "1st Chessable Sunway Formentera 2022"]
[Site "Formentera Punta Prima"]
[Date "2022.05.05"]
[Round "7.11"]
[White "Romanishin, Oleg M"]
[Black "Garcia Martin, Marta"]
[Result "1-0"]
[ECO "D02"]
[WhiteElo "2400"]
[BlackElo "2326"]
[Annotator "TA"]
[PlyCount "77"]
[EventDate "2022.05.05"]
[EventType "swiss"]
[EventCountry "ESP"]
[SourceTitle "playchess.com"]
[Source "ChessBase"]
[SourceQuality "1"]
[TimeControl "40/5400+30:1800+30"]

{[%evp 13,77,10,0,0,0,0,0,0,0,0,0,2,4,0,0,0,0,0,0,0,0,0,8,9,93,90,93,90,90,89,90,90,90,90,133,131,164,161,149,154,164,153,152,124,130,101,101,95,233,247,233,241,282,275,277,267,297,304,280,276,249,246,647,634,564,492]} 1. Nf3 {[%emt 0:00:16]} d5 2. g3 {[%emt 0:00:30]} e6 {[%emt 0:00:47]} 3. Bg2 {[%emt 0:00:30]} c5 {[%emt 0:00:30]} 4. O-O {[%emt 0:00:30]} Nf6 {[%emt 0:00:30]} 5. d4 {[%emt 0:00:22]} cxd4 {[%emt 0:02:44]} 6. Nxd4 {[%emt 0:00:12]} e5 {[%emt 0:00:08]} 7. Nb3 {[%emt 0:00:05]} Be6 {[%emt 0:00:11]} 8. c4 {[%emt 0:00:32] D02: 1 d4 d5 2 Nf3 sidelines, including 2...Nf6 3 g3 and 2...Nf6 3 Bf4.} Nc6 {[%emt 0:00:31]} (8... dxc4 $2 9. Qxd8+ Kxd8 10. Bxb7 $1 $18 (10. Na5 Nc6 $16)) 9. cxd5 {[%emt 0:00:37]} Nxd5 {[%emt 0:00:14]} 10. N1d2 {[%emt 0:00:55][%cal Bb1d2,Bd2e4,Be4c3][%mdl 32] The position is equal.} Be7 {[%emt 0:00:50]} 11. Ne4 {[%emt 0:01:00]} b6 {[%emt 0:01:22] Inhibits Nec5.} 12. Nc3 {[%emt 0:17:33][%cal Rg2d5]} Ndb4 {[%emt 0:00:34]} 13. a3 {[%emt 0:35:33]} Qxd1 {[%emt 0:01:59]} 14. Rxd1 {[%emt 0:00:30]} Bxb3 {[%emt 0:00:30]} 15. axb4 {[%emt 0:00:00]} Rc8 {[%emt 0:01:11]} 16. Bh3 $36 {[%emt 0:01:41][%cal Bg2h3,Bh3c8,Bc8b7][%mdl 2080] White has the initiative.} Bxd1 {[%emt 0:31:27]} 17. Bxc8 {[%emt 0:00:12]} Bb3 {[%emt 0:00:05]} 18. Bb7 {[%emt 0:00:54] [#]} Nxb4 $146 {[%emt 0:14:27]} (18... Kd7 $11 {remains equal.}) ({Predecessor:} 18... Kd7 19. b5 Na5 20. Bd5 Bxd5 21. Nxd5 Ra8 22. Bd2 Nb3 23. Rd1 Bd6 24. Bc3 Ke6 25. e4 Rc8 26. f4 Bc5+ 27. Kf1 Bd4 28. f5+ Kd7 29. Ke2 Kd6 {½-½ (29) Neto,H (2568)-Hoeven,D (2648) ICCF email 2020}) 19. Rxa7 $16 {[%emt 0:00:28]} O-O {[%emt 0:00:13]} 20. Be3 {[%emt 0:01:18]} Bd8 {[%emt 0:07:05]} 21. Na4 {[%emt 0:06:55] White is more active.} Nd5 {[%emt 0:18:56]} 22. Bxd5 {[%emt 0:00:40]} Bxd5 {[%emt 0:00:04]} 23. Bxb6 {[%emt 0:00:19]} Bf6 {[%emt 0:00:25]} 24. Nc3 {[%emt 0:01:23]} Bc4 {[%emt 0:03:19]} 25. e4 {[%emt 0:02:24]} h5 {[%emt 0:01:42]} 26. Bc7 {[%emt 0:03:37] Inhibits Rb8.} Bb3 {[%emt 0:05:08]} 27. h4 {[%emt 0:01:53]} Re8 {[%emt 0:01:32]} 28. Rb7 {[%emt 0:04:19]} Bc4 {[%emt 0:00:33]} 29. b4 {[%emt 0:03:10][%cal Bb2b4,Bb4b5][%mdl 32] b5 is the strong threat.} Ra8 {[%emt 0:00:21]} 30. Ba5 {[%emt 0:00:45]} Bd8 {[%emt 0:01:47] A mistake that costs the game.} (30... Kf8 $16 31. Kg2 Be7) 31. Bxd8 $18 {[%emt 0:00:57]} Rxd8 {[%emt 0:00:05][%mdl 4096] Endgame [#] KRB-KRN} 32. Rc7 $1 {[%emt 0:00:53]} Bd3 {[%emt 0:01:57]} 33. b5 {[%emt 0:01:02]} Rb8 {[%emt 0:00:10] [#]} 34. Rc5 {[%emt 0:00:26]} f6 {[%emt 0:00:07]} 35. f3 {[%emt 0:00:40][%cal Bf2f3,Bf3f4][%mdl 32]} Kf7 {[%emt 0:00:22]} 36. Kf2 {[%emt 0:00:30]} Ke6 {[%emt 0:00:30]} 37. f4 {[%emt 0:04:06]} g6 $2 {[%emt 0:01:04]} (37... Rb6 38. Ke3 Bf1) 38. Ke3 {[%emt 0:01:32]} Bf1 {[%emt 0:00:06]} 39. Rc6+ {[%emt 0:00:29] Weighted Error Value: White=0.01 (flawless) /Black=0.25 (precise)} 1-0

[Event "1st Chessable Sunway Formentera 2022"]
[Site "Formentera Punta Prima"]
[Date "2022.05.05"]
[Round "7.12"]
[White "Alinasab, Mobina"]
[Black "Kovacs, Klara"]
[Result "1-0"]
[ECO "C05"]
[WhiteElo "2373"]
[BlackElo "2108"]
[Annotator "TA"]
[PlyCount "115"]
[EventDate "2022.05.05"]
[EventType "swiss"]
[EventCountry "ESP"]
[SourceTitle "playchess.com"]
[Source "ChessBase"]
[SourceQuality "1"]
[TimeControl "40/5400+30:1800+30"]

{[%evp 14,115,22,14,40,11,39,35,52,48,68,32,47,6,50,53,49,42,60,33,65,51,90,103,91,105,217,91,207,101,108,100,113,81,174,165,192,95,167,100,79,63,181,169,170,141,175,179,151,127,144,133,147,148,216,162,215,158,216,139,309,306,314,288,318,326,495,485,452,366,391,204,506,419,380,318,512,502,495,439,439,417,459,421,469,452,463,457,455,391,389,343,350,369,566,582,1145,1172,2346,2290,29985,29986,29986,29987]} 1. e4 {[%emt 1:31:00]} e6 {[%emt 0:03:03]} 2. d4 {[%emt 0:00:00]} d5 {[%emt 0:00:04]} 3. Nc3 {[%emt 0:00:00]} Nf6 {[%emt 0:01:09]} 4. e5 {[%emt 0:00:00]} Nfd7 {[%emt 0:00:04]} 5. f4 {[%emt 0:00:00]} c5 {[%emt 0:00:04]} 6. Nf3 {[%emt 0:00:00]} Nc6 {[%emt 0:00:05]} 7. Ne2 {[%emt 0:00:00]} cxd4 {[%emt 0:00:22]} 8. Nexd4 {[%emt 0:00:00]} Nc5 {[%emt 0:00:16] C05: French Tarrasch: 3...Nf6 4 e5 Nfd7, 5 f4 and 5 Bd3 sidelines.} 9. g3 {[%emt 0:00:00]} Ne4 {[%emt 0:01:27] [#]} 10. c3 $146 {[%emt 0:00:00] Prevents Bb4.} ({Predecessor:} 10. Bg2 Bb4+ 11. Kf1 h5 12. Be3 Be7 13. Nd2 Nc5 14. h3 f6 15. exf6 gxf6 16. Bf3 {½-½ (45) Paredes Cordo,J (2257)-Martin Otero,A Formigal 2002}) 10... Qa5 {[%emt 0:02:15] White is slightly better.} 11. Bd3 {[%emt 0:00:00]} Bd7 {[%emt 0:10:07][%cal Oe4c3]} 12. O-O {[%emt 0:00:00]} Qb6 {[%emt 0:13:03]} 13. Kg2 {[%emt 0:00:00]} Be7 {[%emt 0:02:40]} 14. Qe2 {[%emt 0:00:00]} (14. Nb3 {looks sharper.} h5 15. h4 Na5 16. Nxa5 Qxa5 17. Be3) 14... Nc5 {[%emt 0:04:47]} 15. Bc2 {[%emt 0:00:00]} Rc8 {[%emt 0:01:08]} 16. Rb1 {[%emt 0:00:00]} a5 {[%emt 0:08:58]} 17. Be3 {[%emt 0:00:00] Strongly threatening f5.} a4 {[%emt 0:16:20]} 18. f5 $1 {[%emt 0:00:00] Threatens to win with fxe6.} Qa6 {[%emt 0:01:59]} 19. Qd1 {[%emt 0:00:00]} b5 {[%emt 0:02:51]} (19... Nxd4 $16 20. Nxd4 g6) 20. fxe6 {[%emt 0:00:00]} (20. f6 $18 {and White stays clearly on top.} gxf6 21. exf6) 20... Bxe6 {[%emt 0:01:51] [#]} (20... Nxe6 $16 21. Nf5 g6) 21. Nxe6 {[%emt 0:00:00]} (21. Nf5 $1 $18 {[%cal Rf5g7] has better winning chances.}) 21... Nxe6 $16 {[%emt 0:01:59]} 22. Bf5 {[%emt 0:00:00]} ({Don't play} 22. Qxd5 Nb4 23. Qd1 (23. cxb4 Rxc2+ 24. Rf2 Rxf2+ 25. Kxf2 Bxb4 $14) 23... Rd8 $14) 22... g6 {[%emt 0:08:36]} 23. Bh3 {[%emt 0:00:00]} Ncd8 {[%emt 0:07:30]} (23... O-O $16) 24. Qxd5 $18 {[%emt 0:00:00]} b4 {[%emt 0:01:53]} 25. Rbd1 {[%emt 0:00:00]} (25. Bh6 $18) 25... Rc7 {[%emt 0:01:10]} (25... O-O $16) 26. Rf2 {[%emt 0:00:00] Chess con chili.} (26. cxb4 $18 {aiming for b5.} Bxb4 27. Bh6) 26... bxc3 $16 {[%emt 0:02:53]} 27. bxc3 {[%emt 0:00:00]} Qc4 {[%emt 0:00:44]} ({Black should play} 27... O-O $14) 28. Qxc4 $18 {[%emt 0:02:21]} Rxc4 {[%emt 0:00:02]} 29. Rc2 {[%emt 0:00:34]} O-O {[%emt 0:04:20] [#]} 30. Rd7 $1 {[%emt 0:01:03]} Bb4 {[%emt 0:00:19]} 31. Rd3 {[%emt 0:05:47] 0x0.001d36225f48dp-1022s more active pieces.} Kg7 {[%emt 0:02:04]} 32. Nd2 {[%emt 0:01:22][%cal Bf3d2,Bd2e4,Be4f6,Bf6d7,Bd7c5,Bc5b3][%mdl 32]} Rc6 {[%emt 0:00:17]} 33. Ne4 {[%emt 0:00:23]} Ba5 {[%emt 0:00:09]} (33... Rc4 $16 34. Nd6 Rc6) 34. Nf6 {[%emt 0:00:51]} Bc7 {[%emt 0:00:33]} (34... Rc7 $142 35. Ne4 Bb4) 35. Bg4 {[%emt 0:01:46][%cal Bh3g4,Bg4f3,Bf3d5][%mdl 32]} a3 {[%emt 0:01:53]} (35... h5 $16 {was worth a try.}) 36. Bf3 {[%emt 0:00:23]} Rc4 $2 {[%emt 0:00:08] A mistake that costs the game.} (36... Ra6 $16 {might work better.} 37. Be2 Ra8) 37. Bd5 {[%emt 0:00:20]} Ra4 {[%emt 0:00:10]} 38. c4 {[%emt 0:00:10]} Rh8 {[%emt 0:00:40]} 39. Nd7 {[%emt 0:00:45]} Nf8 {[%emt 0:00:38]} (39... Rg8 {was necessary.} 40. c5 Re8) 40. Nc5 {[%emt 0:00:00]} Ra5 {[%emt 0:00:00]} 41. Nb3 {[%emt 0:11:09]} Ra4 {[%emt 0:03:16]} 42. Bd4 {[%emt 0:05:52] A strong pair of Bishops.} ({But not} 42. Nc5 Ra5 43. Rf2 Bb6 44. Ne6+ Nfxe6 $18) (42. Rf2 $142) 42... Nde6 {[%emt 0:00:46]} (42... Nfe6 43. Bc3 h5) 43. Bc3 {[%emt 0:00:19]} h5 {[%emt 0:00:32]} 44. h4 {[%emt 0:00:50]} g5 $2 {[%emt 0:01:03]} (44... Kg8 45. Rf2 Rh7) 45. Rf2 {[%emt 0:00:38][%cal Bc2f2,Bf2f1,Bf1b1][%mdl 32] Rdf3 is the strong threat.} Bd8 {[%emt 0:00:50]} 46. Rdf3 {[%emt 0:02:33]} Ra7 {[%emt 0:00:13]} 47. Nd4 {[%emt 0:01:28]} g4 {[%emt 0:03:48]} 48. Nf5+ {[%emt 0:00:16]} Kg8 {[%emt 0:01:16]} 49. Rd3 {[%emt 0:00:11]} Bb6 {[%emt 0:01:30]} 50. Rf1 {[%emt 0:00:04]} Bc5 {[%emt 0:01:04]} 51. Rb1 {[%emt 0:01:01]} Ng6 {[%emt 0:00:55]} 52. Kf1 {[%emt 0:02:20]} Kh7 {[%emt 0:00:24]} 53. Nd6 {[%emt 0:00:19]} Bxd6 {[%emt 0:03:07]} (53... Rd8 $142 54. Rb5 Bxd6) 54. exd6 {[%emt 0:00:08]} Ng7 {[%emt 0:01:55]} 55. c5 {[%emt 0:00:23][%cal Bc4c5,Bc5c6,Bc6c7][%mdl 32]} f5 {[%emt 0:05:50]} 56. c6 {[%emt 0:00:17]} f4 {[%emt 0:00:14]} 57. c7 {[%emt 0:00:15]} fxg3 {[%emt 0:01:08]} 58. Rb8 {[%emt 0:00:07] Weighted Error Value: White=0.29 (precise) /Black=0.68} 1-0

[Event "1st Chessable Sunway Formentera 2022"]
[Site "Formentera Punta Prima"]
[Date "2022.05.05"]
[Round "7.13"]
[White "Mouhamad, Joachim"]
[Black "Bergez, Luc"]
[Result "1/2-1/2"]
[ECO "C70"]
[WhiteElo "2290"]
[BlackElo "2331"]
[Annotator "TA"]
[PlyCount "151"]
[EventDate "2022.05.05"]
[EventType "swiss"]
[EventCountry "ESP"]
[SourceTitle "playchess.com"]
[Source "ChessBase"]
[SourceQuality "1"]
[TimeControl "40/5400+30:1800+30"]

{[%evp 11,151,44,54,45,72,41,49,0,0,0,0,0,0,0,36,38,60,35,23,32,31,22,79,59,62,58,68,81,66,92,83,65,62,60,86,80,83,91,97,71,87,78,73,60,58,59,105,90,103,84,172,88,88,88,89,88,266,277,517,500,561,555,513,85,85,85,85,85,85,85,85,85,85,74,74,74,74,74,74,74,74,74,74,74,74,74,74,67,67,67,67,67,67,67,67,67,67,67,67,0,67,0,67,25,45,25,25,25,25,25,25,25,25,25,25,25,25,10,25,8,25,25,25,25,25,25,25,0,0,0,0,0,0,0,0,0,0,0,0,0,0,0]} 1. e4 {[%emt 0:00:05]} e5 {[%emt 0:00:09]} 2. Nf3 {[%emt 0:00:08]} Nc6 {[%emt 0:00:10]} 3. Bb5 {[%emt 0:00:17][%cal Bf1b5,Bb5a4,Ba4b3][%mdl 32]} a6 {[%emt 0:00:11]} 4. Ba4 {[%emt 0:00:06]} Bc5 {[%emt 0:00:20]} 5. c3 {[%emt 0:01:02]} b5 {[%emt 0:00:39]} 6. Bb3 {[%emt 0:00:58]} d6 {[%emt 0:03:49]} 7. a4 {[%emt 0:01:04] C70: Ruy Lopez: 3...a6 4 Ba4, Norwegian and Delayed Schliemann.} Ba7 {[%emt 0:05:57]} 8. O-O {[%emt 0:02:05]} Nf6 {[%emt 0:03:59]} 9. Re1 {[%emt 0:00:31]} (9. axb5 $14 {is superior.} axb5 10. d4) 9... O-O $11 {[%emt 0:01:02]} 10. h3 {[%emt 0:02:34] [#]} h6 $146 {[%emt 0:05:46]} ({Predecessor:} 10... Bb7 11. d3 h6 12. Na3 b4 13. Nc2 a5 14. Ne3 Re8 15. Nf5 Ne7 16. Ng3 c5 {1-0 (48) Bucinskas,V-Komarovs,J Marijampole 1996}) 11. d4 {[%emt 0:01:35]} Bb7 {[%emt 0:05:18]} 12. Be3 {[%emt 0:03:56]} exd4 {[%emt 0:08:27]} ({Don't take} 12... Nxe4 13. d5 Bxe3 14. Rxe3 $16) 13. cxd4 {[%emt 0:01:27]} Nb4 {[%emt 0:00:31]} (13... Nxe4 14. d5 Na5 15. Bxa7 Nxb3 16. Qxb3 $18) 14. d5 {[%emt 0:01:29]} (14. axb5 {keeps more tension.} Bxe4 15. bxa6 c5 16. Nbd2) 14... Bxe3 {[%emt 0:01:56]} 15. Rxe3 {[%emt 0:00:14]} c5 {[%emt 0:02:00]} 16. dxc6 {[%emt 0:11:14]} Bxc6 {[%emt 0:00:09]} (16... Nxc6 $11 17. Nc3 b4) 17. Nc3 {[%emt 0:00:44]} bxa4 {[%emt 0:08:11]} 18. Bxa4 {[%emt 0:02:47]} Bxa4 {[%emt 0:02:17]} 19. Rxa4 {[%emt 0:02:47]} a5 {[%emt 0:00:20]} 20. Nd4 {[%emt 0:02:20]} g6 {[%emt 0:00:42] Against Nf5} 21. Ndb5 {[%emt 0:03:18]} Ra6 {[%emt 0:01:12]} 22. Ra1 {[%emt 0:01:26]} Qe7 {[%emt 0:05:54]} 23. Qd2 {[%emt 0:02:01]} Rb8 {[%emt 0:07:02]} 24. Rd1 {[%emt 0:00:50][%cal Rb5d6]} Ne8 {[%emt 0:00:19]} 25. Nd4 {[%emt 0:04:34]} Kh7 {[%emt 0:07:29]} 26. Rf3 {[%emt 0:07:11]} Rb7 {[%emt 0:07:15]} 27. Re1 {[%emt 0:05:31][%cal Oh3h4]} Qe5 {[%emt 0:02:39]} 28. Nd5 {[%emt 0:01:27]} Qg7 {[%emt 0:04:39]} (28... Qg5 $14 29. Qe2 Ra8) 29. Rb3 $16 {[%emt 0:19:14] White is much more active.} Nc7 {[%emt 0:04:27]} 30. Nxb4 {[%emt 0:00:52]} Rab6 {[%emt 0:02:49] [#]} (30... axb4 $16 31. Rxb4 Rxb4 32. Qxb4 Qe5) 31. Nbc6 $1 {[%emt 0:11:29]} Rxb3 {[%emt 0:00:23]} 32. Nxb3 {[%emt 0:00:23]} Rxb3 {[%emt 0:00:08]} 33. Qxd6 {[%emt 0:01:46]} Nb5 {[%emt 0:00:12] [#]} (33... Ne6 $16 {was worth a try.}) 34. Qd8 $1 $18 {[%emt 0:01:47]} a4 $2 {[%emt 0:03:44]} (34... h5 35. Nxa5 (35. Qxa5 Qf6 $16) 35... Rxb2) 35. e5 {[%emt 0:01:10] Black must now prevent e6.} Rxb2 {[%emt 0:00:08]} 36. e6 {[%emt 0:01:32]} fxe6 {[%emt 0:03:42] [#] aiming for ...a3.} 37. Rxe6 $2 {[%emt 0:00:50]} (37. Rd1 $1 $18 {[%cal Rd1d7] and the rest is easy. Hoping for Rd7.} Nd6 38. Qxd6) 37... Rb1+ $16 {[%emt 0:00:34]} 38. Kh2 {[%emt 0:00:13] Strongly threatening Re7.} Qc7+ {[%emt 0:00:03]} 39. Qxc7+ {[%emt 0:00:42]} Nxc7 {[%emt 0:00:08][%mdl 4096] Endgame KRN-KRN} 40. Re7+ {[%emt 0:00:00]} Kh8 {[%emt 0:00:00][%cal Oa4a3]} 41. Rxc7 {[%emt 0:07:55] KRN-KR} Rc1 {[%emt 0:00:20] [#]} 42. Ra7 $1 {[%emt 0:00:29]} Rxc6 {[%emt 0:00:09]} 43. Rxa4 {[%emt 0:00:05] KR-KR} Kg7 {[%emt 0:01:10]} 44. h4 {[%emt 0:02:05]} h5 {[%emt 0:02:12]} 45. Ra7+ {[%emt 0:03:30]} Kf6 {[%emt 0:00:31]} 46. Ra3 {[%emt 0:00:24]} Rc4 {[%emt 0:00:30]} 47. Ra6+ {[%emt 0:00:26]} Kf5 {[%emt 0:00:20]} 48. Kh3 {[%emt 0:00:25]} Rc3+ {[%emt 0:00:14]} 49. f3 {[%emt 0:00:37]} Rb3 {[%emt 0:00:12]} 50. Ra8 {[%emt 0:00:25]} Kf6 {[%emt 0:00:10]} 51. Rf8+ {[%emt 0:00:46]} Kg7 {[%emt 0:00:08]} 52. Rf4 {[%emt 0:00:13]} Ra3 {[%emt 0:00:08]} 53. Rb4 {[%emt 0:01:15]} Rc3 {[%emt 0:00:20]} 54. Kg3 {[%emt 0:00:22]} Rc2 {[%emt 0:00:10]} 55. Kh3 {[%emt 0:00:46]} Rc3 $1 {[%emt 0:00:07]} 56. Rf4 {[%emt 0:00:16]} Ra3 $1 {[%emt 0:01:30]} 57. g3 {[%emt 0:00:17]} Ra2 {[%emt 0:00:20]} 58. g4 {[%emt 0:00:26]} hxg4+ {[%emt 0:00:09]} 59. Rxg4 {[%emt 0:00:18]} Kf6 {[%emt 0:00:59]} 60. Rb4 {[%emt 0:00:38]} Ra6 {[%emt 0:01:51]} 61. Kg4 {[%emt 0:00:11]} Rc6 {[%emt 0:00:16]} 62. Rb7 {[%emt 0:00:40]} Rc4+ {[%emt 0:00:19]} 63. Kg3 {[%emt 0:00:17]} Rc6 {[%emt 0:00:15]} 64. Rh7 {[%emt 0:00:43]} Rc4 {[%emt 0:00:45]} 65. Rh8 {[%emt 0:00:18]} Ra4 {[%emt 0:00:22]} 66. Rf8+ {[%emt 0:00:50]} Kg7 {[%emt 0:00:09]} 67. Rc8 {[%emt 0:00:50]} Ra6 {[%emt 0:00:16]} 68. Kg4 {[%emt 0:00:56]} Ra4+ {[%emt 0:00:33]} 69. f4 {[%emt 0:00:07]} Ra5 {[%emt 0:01:08] The position is equal.} 70. Re8 {[%emt 0:00:50]} Kf6 {[%emt 0:00:12]} 71. Re5 {[%emt 0:00:32]} Ra1 {[%emt 0:00:41]} 72. Re3 {[%emt 0:00:47]} Rg1+ {[%emt 0:00:11]} 73. Rg3 {[%emt 0:00:18]} Rf1 {[%emt 0:00:39]} 74. Rg2 {[%emt 0:00:06]} Rh1 {[%emt 0:00:13]} 75. Kg3 {[%emt 0:00:26]} Kf5 {[%emt 0:00:14]} 76. Rf2 {[%emt 0:03:16] Black escapes into a draw.  Weighted Error Value: White=0.19 (very precise) /Black=0.17 (very precise)} 1/2-1/2